Workbook

Sheet Cover
A3: Navigator
C5: =Client_Name -> SumProduct Training
C6: =Model_Name -> Example Generic Inventory Model.xlsm
C14: Primary Developer: Liam Bastick
C16: General Cover Notes:
C17: Simple template to illustrate how inventory might work.
C21: Any queries, please e-mail: | G21: liam.bastick@sumproduct.com
C22: Website: | G22: www.sumproduct.com

Sheet Navigator
A1: Navigator
A2: =Model_Name -> Example Generic Inventory Model.xlsm
A3: Navigator
E4: Error Checks: | G4: =Overall_Error_Check -> 0
B7: 1 | C7: Table of Contents
F9: Cover
F10: Style Guide
F11: Model Parameters
F12: Timing
F13: Inventory Example
F14: Error Checks
F15: Change Log

Sheet Style Guide
A1: =IF(ISERROR(RIGHT(CELL("filename",A1),LEN(CELL("filename",A1))-FIND("]",CELL("filename",A1)))), "", RIGHT(CELL("filename",A1),LEN(CELL("filename",A1))-FIND("]",CELL("filename",A1)))) -> Style Guide
A2: =Model_Name -> Example Generic Inventory Model.xlsm
A3: Navigator
E4: Error Checks: | I4: =Overall_Error_Check -> 0
B6: =MAX($B$5:$B5)+1 -> 1 | C6: Formatting of Headers / Dividers
C8: Description | I8: Display | K8: Style Name
C10: Sheet Title | I10: =C10 -> Sheet Title | K10: Sheet Title
C11: Model Name | I11: =C11 -> Model Name | K11: Model Name
C13: Header 1 | I13: =C13 -> Header 1 | K13: Header 1
C14: Header 2 | I14: =C14 -> Header 2 | K14: Header 2
C15: Header 3 | I15: =C15 -> Header 3 | K15: Header 3
C16: Header 4 | I16: =C16 -> Header 4 | K16: Header 4
C18: Notes | I18: =C18 -> Notes | K18: Notes
C20: Table Heading | I20: =C20 -> Table Heading | K20: Table Heading
B23: =MAX($B$5:$B22)+1 -> 2 | C23: Individual Cell Styles
C25: Description | I25: Display | K25: Style Name
C27: Assumption | I27: Assumption | K27: =C27 -> Assumption
C29: Constraint | I29: =C29 -> Constraint | K29: =C29 -> Constraint
C31: Empty | K31: =C31 -> Empty
C33: Error Check | I33: 0 | K33: =C33 -> Error Check
C35: Hyperlink | I35: Hyperlink | K35: =C35 -> Hyperlink
C37: Internal Reference | I37: ='Error Checks'!E12 -> Purchases OK | K37: =C37 -> Internal Reference
C39: Line Calculation | I39: 77 | K39: Line Calc
C41: Line Total | I41: =I39 -> 77 | K41: =C41 -> Line Total
C43: Parameter | I43: 365 | K43: =C43 -> Parameter
C45: Range Name Description | I45: Not_Named | K45: =C45 -> Range Name Description
C47: Row Reference | I47: =ROW(C47) -> 47 | K47: Row Ref
C49: Row Summary | I49: =I41 -> 77 | K49: =C49 -> Row Summary
C51: Units | I51: A$ | K51: =C51 -> Units
C53: WIP | K53: =C53 -> WIP
B56: =MAX($B$5:$B55)+1 -> 3 | C56: Numerical Styles
C58: Description | I58: Display | K58: Style Name
C60: Comma | I60: 123456.789 | K60: =C60 -> Comma
C62: Comma [0] | I62: -123456.789 | K62: Comma [0]
C64: Currency | I64: 123456.789 | K64: Currency
C66: Currency [0] | I66: 123456.789 | K66: Currency [0]
C68: Date | I68: =TODAY() -> 2016-12-23 | K68: =C68 -> Date
C70: Date Heading | I70: =TODAY() -> 2016-12-23 | K70: =C70 -> Date Heading
C72: Numbers 0 | I72: -123456.789 | K72: =C72 -> Numbers 0
C74: Percent | I74: 0.5 | K74: =C74 -> Percent

Sheet Model Parameters
A1: =IF(ISERROR(RIGHT(CELL("filename",A1),LEN(CELL("filename",A1))-FIND("]",CELL("filename",A1)))), "", RIGHT(CELL("filename",A1),LEN(CELL("filename",A1))-FIND("]",CELL("filename",A1)))) -> Model Parameters
A2: =Model_Name -> Example Generic Inventory Model.xlsm
A3: Navigator
E4: Error Checks: | I4: =Overall_Error_Check -> 0
B6: =MAX($B$5:$B5)+1 -> 1 | C6: General
C8: Key Inputs
E10: General
E11: Model Name | G11: =IF(ISERROR(OR(FIND("[",CELL("filename",A1)),FIND("]",CELL("filename",A1)))),"",MID(CELL("filename",A1),FIND("[",CELL("filename",A1))+1,FIND("]",CELL("filename",A1))-FIND("[",CELL("filename",A1))-1)) -> Example Generic Inventory Model.xlsm
E12: Client Name | G12: SumProduct Training
B15: =MAX($B$5:$B14)+1 -> 2 | C15: General Range Names
C17: Technical Assumptions
E19: Days in Year | G19: 365
E20: Months in Month | G20: 1
E21: Months in Quarter | G21: 3
E22: Months in Half Yr | G22: 6
E23: Months in Year | G23: 12
E24: Quarters in Year | G24: 4
E26: Rounding Accuracy | G26: 5
E28: Very Large Number | G28: 1e+99
E29: Very Small Number | G29: 1e-08
E31: Thousand | G31: 1000

Sheet Timing
A1: =IF(ISERROR(RIGHT(CELL("filename",A1),LEN(CELL("filename",A1))-FIND("]",CELL("filename",A1)))), "", RIGHT(CELL("filename",A1),LEN(CELL("filename",A1))-FIND("]",CELL("filename",A1)))) -> Timing
A2: =Model_Name -> Example Generic Inventory Model.xlsm
A3: Navigator
B4: Error Checks: | F4: =Overall_Error_Check -> 0
J5: =J$7 -> 2017-06-30 | K5: =K$7 -> 2018-06-30 | L5: =L$7 -> 2019-06-30 | M5: =M$7 -> 2020-06-30 | N5: =N$7 -> 2021-06-30
C6: Start Date | J6: =IF(J$9=1,Model_Start_Date,I$7+1) -> 2016-07-01 | K6: =IF(K$9=1,Model_Start_Date,J$7+1) -> 2017-07-01 | L6: =IF(L$9=1,Model_Start_Date,K$7+1) -> 2018-07-01 | M6: =IF(M$9=1,Model_Start_Date,L$7+1) -> 2019-07-01 | N6: =IF(N$9=1,Model_Start_Date,M$7+1) -> 2020-07-01
C7: End Date | J7: =EOMONTH(J$6,MOD(Periodicity+Reporting_Month_Factor-MONTH(J$6),Periodicity)) -> 2017-06-30 | K7: =EOMONTH(K$6,MOD(Periodicity+Reporting_Month_Factor-MONTH(K$6),Periodicity)) -> 2018-06-30 | L7: =EOMONTH(L$6,MOD(Periodicity+Reporting_Month_Factor-MONTH(L$6),Periodicity)) -> 2019-06-30 | M7: =EOMONTH(M$6,MOD(Periodicity+Reporting_Month_Factor-MONTH(M$6),Periodicity)) -> 2020-06-30 | N7: =EOMONTH(N$6,MOD(Periodicity+Reporting_Month_Factor-MONTH(N$6),Periodicity)) -> 2021-06-30
C8: Number of Days | J8: =J7-J6+1 -> 365 | K8: =K7-K6+1 -> 365 | L8: 365 | M8: 366 | N8: 365
C9: Counter | J9: =N(I$9)+1 -> 1 | K9: =N(J$9)+1 -> 2 | L9: 3 | M9: 4 | N9: 5
B11: =MAX($B$10:$B10)+1 -> 1 | C11: Timing Assumptions
C13: Data (do not change once modelling has commenced)
D15: Model Start Date | H15: 2016-07-01
D17: Number of Months in a Full Period | H17: 12
D19: Example Reporting Month | H19: 6 | I19: ="e.g. "&TEXT(DATE(YEAR(Model_Start_Date)+IF(Example_Reporting_Month<MONTH(Model_Start_Date),1,0),Example_Reporting_Month+1,1)-1,"dd-Mmm-yy") -> e.g. 30-Jun-17
D21: Reporting Month Factor | H21: =MOD(Example_Reporting_Month-1,Periodicity)+1 -> 6
D23: Months per Year | H23: 12

Sheet Inventory Example
A1: =IF(ISERROR(RIGHT(CELL("filename",A1),LEN(CELL("filename",A1))-FIND("]",CELL("filename",A1)))), "", RIGHT(CELL("filename",A1),LEN(CELL("filename",A1))-FIND("]",CELL("filename",A1)))) -> Inventory Example
A2: =Model_Name -> Example Generic Inventory Model.xlsm
A3: Navigator
B4: Error Checks: | F4: =Overall_Error_Check -> 0
J5: =Timing!J5 -> 2017-06-30 | K5: =Timing!K5 -> 2018-06-30 | L5: =Timing!L5 -> 2019-06-30 | M5: =Timing!M5 -> 2020-06-30 | N5: =Timing!N5 -> 2021-06-30
C6: =Timing!C6 -> Start Date | J6: =Timing!J6 -> 2016-07-01 | K6: =Timing!K6 -> 2017-07-01 | L6: =Timing!L6 -> 2018-07-01 | M6: =Timing!M6 -> 2019-07-01 | N6: =Timing!N6 -> 2020-07-01
C7: =Timing!C7 -> End Date | J7: =Timing!J7 -> 2017-06-30 | K7: =Timing!K7 -> 2018-06-30 | L7: =Timing!L7 -> 2019-06-30 | M7: =Timing!M7 -> 2020-06-30 | N7: =Timing!N7 -> 2021-06-30
C8: =Timing!C8 -> Number of Days | J8: =Timing!J8 -> 365 | K8: =Timing!K8 -> 365 | L8: =Timing!L8 -> 365 | M8: =Timing!M8 -> 366 | N8: =Timing!N8 -> 365
C9: =Timing!C9 -> Counter | J9: =Timing!J9 -> 1 | K9: =Timing!K9 -> 2 | L9: =Timing!L9 -> 3 | M9: =Timing!M9 -> 4 | N9: =Timing!N9 -> 5
B11: =MAX($B$10:$B10)+1 -> 1 | C11: Notes
C13: Please read
D15: This example assumes inventory is stored with heteropricing, i.e. inventory prices vary over time.
D16: Inventory is valued on an average cost.
B19: =MAX($B$10:$B18)+1 -> 2 | C19: Assumptions
C21: Revenue
D23: =C19 -> Assumptions
E25: Sales
E26: Projected Sales | F26: # | J26: 100 | K26: 200 | L26: 300 | M26: 400 | N26: 500
E27: Unit Price | F27: $ | J27: 15
E28: Inflation | F28: Index | K28: 0.03 | L28: 0.04 | M28: 0.05 | N28: 0.06
E30: Inventory
E31: Purchases | F31: kg | J31: 400 | K31: 775 | L31: 325 | M31: 550 | N31: 1000
E32: Price | F32: $/kg | J32: 3.99 | K32: 4.75 | L32: 2.8 | M32: 4.16 | N32: 5
E33: Amount Used Per Sale | F33: kg | J33: 2 | K33: 2 | L33: 2 | M33: 2 | N33: 2
E34: Wastage | F34: % | J34: 0.03 | K34: 0.02 | L34: 0.02 | M34: 0.01 | N34: 0.01
E36: Working Capital Assumptions
E37: Days Receivable | F37: # days | J37: 60 | K37: 60 | L37: 60 | M37: 60 | N37: 60
E38: Days Payable | F38: # days | J38: 30 | K38: 30 | L38: 30 | M38: 30 | N38: 30
B41: =MAX($B$10:$B40)+1 -> 3 | C41: =E25 -> Sales
C43: Revenue
D45: Referred Values
E47: =E26 -> Projected Sales | F47: # | H47: ="Row "&ROW(A26) -> Row 26 | J47: =J26 -> 100 | K47: 200 | L47: 300 | M47: 400 | N47: 500
E48: =E27 -> Unit Price | F48: $ | H48: ="Row "&ROW(A27) -> Row 27 | J48: =J27 -> 15
E49: Inflation | F49: Index | H49: Row 28 | K49: =K28 -> 0.03 | L49: =L28 -> 0.04 | M49: 0.05 | N49: 0.06
E51: =E37 -> Days Receivable | F51: # days | H51: ="Row "&ROW(A37) -> Row 37 | J51: =J37 -> 60 | K51: =K37 -> 60 | L51: 60 | M51: 60 | N51: 60
D54: Calculations
E56: Price Per Unit | F56: $ | J56: =IF(J$9=1,$J$48,I56*(1+J49)) -> 15 | K56: =IF(K$9=1,$J$48,J56*(1+K49)) -> 15.45 | L56: 16.068 | M56: 16.8714 | N56: 17.883684
E57: =E47 -> Projected Sales | F57: # | J57: =J47 -> 100 | K57: =K47 -> 200 | L57: 300 | M57: 400 | N57: 500
E58: =C43 -> Revenue | F58: $ | J58: =J56*J57 -> 1500 | K58: =K56*K57 -> 3090 | L58: =L56*L57 -> 4820.4 | M58: =M56*M57 -> 6748.56 | N58: =N56*N57 -> 8941.842
E61: =E51 -> Days Receivable | F61: # days | J61: =J$51 -> 60 | K61: =K$51 -> 60 | L61: 60 | M61: 60 | N61: 60
E62: Days in Period | F62: # days | J62: =J$8 -> 365 | K62: =K$8 -> 365 | L62: 365 | M62: 366 | N62: 365
E63: Closing Receivables | F63: $ | J63: =J58*J61/J62 -> 246.5753425 | K63: =K58*K61/K62 -> 507.9452055 | L63: =L58*L61/L62 -> 792.3945205 | M63: =M58*M61/M62 -> 1106.321311 | N63: =N58*N61/N62 -> 1469.891836
D66: Control Account
E68: Opening Receivables | F68: $ | J68: =I71 -> 0 | K68: =J71 -> 246.5753425 | L68: 507.9452055 | M68: 792.3945205 | N68: 1106.321311 | O68: BS
E69: =E58 -> Revenue | F69: $ | J69: =J58 -> 1500 | K69: =K58 -> 3090 | L69: =L58 -> 4820.4 | M69: =M58 -> 6748.56 | N69: =N58 -> 8941.842 | O69: IS
E70: Cash Receipts | F70: $ | J70: =J71-SUM(J68:J69) -> -1253.424658 | K70: =K71-SUM(K68:K69) -> -2828.630137 | L70: -4535.950685 | M70: -6434.633209 | N70: -8578.271476 | O70: CFS
E71: =E63 -> Closing Receivables | F71: $ | J71: =J63 -> 246.5753425 | K71: =K63 -> 507.9452055 | L71: 792.3945205 | M71: 1106.321311 | N71: 1469.891836 | O71: BS
B74: =MAX($B$10:$B73)+1 -> 4 | C74: Inventory
C76: Purchases
D78: Referred Values
E80: =E31 -> Purchases | F80: kg | H80: ="Row "&ROW(A31) -> Row 31 | J80: =J31 -> 400 | K80: =K31 -> 775 | L80: 325 | M80: 550 | N80: 1000
E81: =E32 -> Price | F81: $/kg | H81: ="Row "&ROW(A32) -> Row 32 | J81: =J32 -> 3.99 | K81: =K32 -> 4.75 | L81: 2.8 | M81: 4.16 | N81: 5
D84: Calculations
E86: =E80 -> Purchases | F86: kg | J86: =J80 -> 400 | K86: =K80 -> 775 | L86: 325 | M86: 550 | N86: 1000
E87: =E81 -> Price | F87: $/kg | J87: =J81 -> 3.99 | K87: =K81 -> 4.75 | L87: 2.8 | M87: 4.16 | N87: 5
E88: =E86 -> Purchases | F88: $ | J88: =J86*J87 -> 1596 | K88: =K86*K87 -> 3681.25 | L88: 910 | M88: 2288 | N88: 5000
E91: =E38 -> Days Payable | F91: # days | J91: =J$38 -> 30 | K91: =K$38 -> 30 | L91: 30 | M91: 30 | N91: 30
E92: Days in Period | F92: # days | J92: =J$8 -> 365 | K92: =K$8 -> 365 | L92: 365 | M92: 366 | N92: 365
E93: Closing Payables | F93: $ | J93: =J88*J91/J92 -> 131.1780822 | K93: =K88*K91/K92 -> 302.5684932 | L93: 74.79452055 | M93: 187.5409836 | N93: 410.9589041
D96: Control Account
E98: Opening Payables | F98: $ | J98: =I101 -> 0 | K98: =J101 -> 131.1780822 | L98: 302.5684932 | M98: 74.79452055 | N98: 187.5409836 | O98: BS
E99: =E88 -> Purchases | F99: $ | H99: ="Opposite of row "&ROW(A149) -> Opposite of row 149 | J99: =J88 -> 1596 | K99: =K88 -> 3681.25 | L99: =L88 -> 910 | M99: =M88 -> 2288 | N99: =N88 -> 5000 | O99: Excluded
E100: Cash Payments | F100: $ | J100: =J101-SUM(J98:J99) -> -1464.821918 | K100: =K101-SUM(K98:K99) -> -3509.859589 | L100: =L101-SUM(L98:L99) -> -1137.773973 | M100: =M101-SUM(M98:M99) -> -2175.253537 | N100: =N101-SUM(N98:N99) -> -4776.582079 | O100: CFS
E101: =E93 -> Closing Payables | F101: $ | J101: =J93 -> 131.1780822 | K101: =K93 -> 302.5684932 | L101: 74.79452055 | M101: 187.5409836 | N101: 410.9589041 | O101: BS
C104: Inventory at Hand (kg)
D106: Referred Values
E108: =E31 -> Purchases | F108: kg | H108: ="Row "&ROW(A31) -> Row 31 | J108: =J31 -> 400 | K108: 775 | L108: 325 | M108: 550 | N108: 1000
E109: =E88 -> Purchases | F109: $ | H109: ="Row "&ROW(A88) -> Row 88 | J109: =J88 -> 1596 | K109: =K88 -> 3681.25 | L109: 910 | M109: 2288 | N109: 5000
E110: =E33 -> Amount Used Per Sale | F110: kg | H110: ="Row "&ROW(A33) -> Row 33 | J110: =J33 -> 2 | K110: 2 | L110: 2 | M110: 2 | N110: 2
E111: =E34 -> Wastage | F111: % | H111: ="Row "&ROW(A34) -> Row 34 | J111: 0.03 | K111: 0.02 | L111: 0.02 | M111: 0.01 | N111: 0.01
E113: =E26 -> Projected Sales | F113: # | H113: ="Row "&ROW(A26) -> Row 26 | J113: =J26 -> 100 | K113: =K26 -> 200 | L113: =L26 -> 300 | M113: =M26 -> 400 | N113: =N26 -> 500
D116: Calculations
E118: =E110 -> Amount Used Per Sale | F118: kg | J118: =J110 -> 2 | K118: =K110 -> 2 | L118: 2 | M118: 2 | N118: 2
E119: =E113 -> Projected Sales | F119: # | H119: ="Row "&ROW(A113) -> Row 113 | J119: =J113 -> 100 | K119: =K113 -> 200 | L119: 300 | M119: 400 | N119: 500
E120: COGS | F120: kg | J120: =J118*J119 -> 200 | K120: =K118*K119 -> 400 | L120: 600 | M120: 800 | N120: 1000
E122: Inventory Balance Pre-Wastage | F122: kg | J122: =SUM(J139:J141) -> 200 | K122: =SUM(K139:K141) -> 569 | L122: 282.62 | M122: 26.9676 | N122: 26.697924
E123: =E111 -> Wastage | F123: % | H123: ="Row "&ROW(A111) -> Row 111 | J123: =J111 -> 0.03 | K123: =K111 -> 0.02 | L123: 0.02 | M123: 0.01 | N123: 0.01
E124: =E123 -> Wastage | F124: kg | J124: =J122*J123 -> 6 | K124: =K122*K123 -> 11.38 | L124: =L122*L123 -> 5.6524 | M124: =M122*M123 -> 0.269676 | N124: =N122*N123 -> 0.26697924
E126: Inventory Balance Pre-COGS Transfer | F126: kg | J126: =SUM(J139:J140) -> 400 | K126: =SUM(K139:K140) -> 969 | L126: 882.62 | M126: 826.9676 | N126: 1026.697924
E127: Inventory Balance Pre-COGS Transfer | F127: $ | J127: =SUM(J148:J149) -> 1596 | K127: =SUM(K148:K149) -> 4455.31 | L127: 3473.84929 | M127: 3378.099591 | N127: 5109.058984
E128: =E120 -> COGS | F128: kg | H128: ="Row "&ROW(A120) -> Row 120 | J128: =J120 -> 200 | K128: =K120 -> 400 | L128: 600 | M128: 800 | N128: 1000
E129: =E120 -> COGS | F129: $ | J129: =IF(J126,J127*J128/J126,) -> 798 | K129: =IF(K126,K127*K128/K126,) -> 1839.137255 | L129: 2361.502769 | M129: 3267.939001 | N129: 4976.20465
E131: Inventory Balance Pre-Wastage | F131: kg | J131: =J126-J128 -> 200 | K131: =K126-K128 -> 569 | L131: 282.62 | M131: 26.9676 | N131: 26.697924
E132: Inventory Balance Pre-COGS Transfer | F132: $ | J132: =J127-J129 -> 798 | K132: =K127-K129 -> 2616.172745 | L132: 1112.346521 | M132: 110.1605897 | N132: 132.8543336
E133: =E123 -> Wastage | F133: kg | H133: ="Row "&ROW(A46) -> Row 46 | J133: =J124 -> 6 | K133: =K124 -> 11.38 | L133: 5.6524 | M133: 0.269676 | N133: 0.26697924
E134: =E123 -> Wastage | F134: $ | J134: =IF(J131,J132*J133/J131,) -> 23.94 | K134: =IF(K131,K132*K133/K131,) -> 52.3234549 | L134: =IF(L131,L132*L133/L131,) -> 22.24693042 | M134: =IF(M131,M132*M133/M131,) -> 1.101605897 | N134: =IF(N131,N132*N133/N131,) -> 1.328543336
D137: =C104 -> Inventory at Hand (kg)
E139: Opening Inventory | F139: kg | J139: =I143 -> 0 | K139: =J143 -> 194 | L139: 557.62 | M139: 276.9676 | N139: 26.697924
E140: Purchases | F140: kg | J140: =J108 -> 400 | K140: =K108 -> 775 | L140: =L108 -> 325 | M140: =M108 -> 550 | N140: =N108 -> 1000
E141: =E120 -> COGS | F141: kg | J141: =-J120 -> -200 | K141: =-K120 -> -400 | L141: =-L120 -> -600 | M141: =-M120 -> -800 | N141: =-N120 -> -1000
E142: Wastage | F142: kg | J142: =-J124 -> -6 | K142: =-K124 -> -11.38 | L142: =-L124 -> -5.6524 | M142: =-M124 -> -0.269676 | N142: =-N124 -> -0.26697924
E143: Closing Inventory | F143: kg | J143: =SUM(J139:J142) -> 194 | K143: =SUM(K139:K142) -> 557.62 | L143: 276.9676 | M143: 26.697924 | N143: 26.43094476
D146: Inventory ($)
E148: =E139 -> Opening Inventory | F148: $ | J148: =I152 -> 0 | K148: =J152 -> 774.06 | L148: 2563.84929 | M148: 1090.099591 | N148: 109.0589839 | O148: BS
E149: =E140 -> Purchases | F149: $ | H149: ="Opposite of row "&ROW(A99) -> Opposite of row 99 | J149: =J109 -> 1596 | K149: =K109 -> 3681.25 | L149: 910 | M149: 2288 | N149: 5000 | O149: Excluded
E150: COGS | F150: $ | J150: =-J129 -> -798 | K150: =-K129 -> -1839.137255 | L150: =-L129 -> -2361.502769 | M150: =-M129 -> -3267.939001 | N150: =-N129 -> -4976.20465 | O150: IS
E151: Wastage | F151: $ | J151: =-J134 -> -23.94 | K151: =-K134 -> -52.3234549 | L151: =-L134 -> -22.24693042 | M151: =-M134 -> -1.101605897 | N151: =-N134 -> -1.328543336 | O151: IS
E152: Closing Inventory | F152: $ | J152: =SUM(J148:J151) -> 774.06 | K152: =SUM(K148:K151) -> 2563.84929 | L152: =SUM(L148:L151) -> 1090.099591 | M152: =SUM(M148:M151) -> 109.0589839 | N152: =SUM(N148:N151) -> 131.5257902 | O152: BS
E155: Purchases OK | F155: [1,0] | I155: =MIN(SUM(J155:N155),1) -> 0 | J155: =IFERROR((ROUND(J99-J149,Rounding_Accuracy)<>0)*1,1) -> 0 | K155: =IFERROR((ROUND(K99-K149,Rounding_Accuracy)<>0)*1,1) -> 0 | L155: =IFERROR((ROUND(L99-L149,Rounding_Accuracy)<>0)*1,1) -> 0 | M155: =IFERROR((ROUND(M99-M149,Rounding_Accuracy)<>0)*1,1) -> 0 | N155: =IFERROR((ROUND(N99-N149,Rounding_Accuracy)<>0)*1,1) -> 0
B158: =MAX($B$10:$B157)+1 -> 5 | C158: Extracts from Financial Statements
C160: Income Statement
E162: =E69 -> Revenue | F162: $ | J162: =J69 -> 1500 | K162: =K69 -> 3090 | L162: 4820.4 | M162: 6748.56 | N162: 8941.842
E163: =E150 -> COGS | F163: $ | J163: =J150 -> -798 | K163: =K150 -> -1839.137255 | L163: -2361.502769 | M163: -3267.939001 | N163: -4976.20465
E164: Gross Profit | F164: $ | J164: =SUM(J162:J163) -> 702 | K164: =SUM(K162:K163) -> 1250.862745 | L164: 2458.897231 | M164: 3480.620999 | N164: 3965.63735
E165: Wastage | F165: $ | J165: =J151 -> -23.94 | K165: =K151 -> -52.3234549 | L165: -22.24693042 | M165: -1.101605897 | N165: -1.328543336
E166: Profit c/f | F166: $ | J166: =SUM(J164:J165) -> 678.06 | K166: =SUM(K164:K165) -> 1198.53929 | L166: =SUM(L164:L165) -> 2436.6503 | M166: =SUM(M164:M165) -> 3479.519393 | N166: =SUM(N164:N165) -> 3964.308806
C169: Balance Sheet
E171: Cash | F171: $ | J171: =MAX(SUM($J197:J197),) -> 0 | K171: =MAX(SUM($J197:K197),) -> 0 | L171: =MAX(SUM($J197:L197),) -> 2505.55 | M171: =MAX(SUM($J197:M197),) -> 6764.929672 | N171: =MAX(SUM($J197:N197),) -> 10566.61907
E172: Inventory | F172: $ | J172: =J152 -> 774.06 | K172: =K152 -> 2563.84929 | L172: 1090.099591 | M172: 109.0589839 | N172: 131.5257902
E173: =E71 -> Closing Receivables | F173: $ | J173: =J71 -> 246.5753425 | K173: =K71 -> 507.9452055 | L173: 792.3945205 | M173: 1106.321311 | N173: 1469.891836
E174: Current Assets | F174: $ | J174: =SUM(J171:J173) -> 1020.635342 | K174: =SUM(K171:K173) -> 3071.794496 | L174: 4388.044111 | M174: 7980.309967 | N174: 12168.03669
E176: Bank Overdraft | F176: $ | J176: =-MIN(SUM($J197:J197),) -> 211.3972603 | K176: =-MIN(SUM($J197:K197),) -> 892.6267123 | L176: =-MIN(SUM($J197:L197),) -> 0 | M176: =-MIN(SUM($J197:M197),) -> 0 | N176: =-MIN(SUM($J197:N197),) -> 0
E177: =E101 -> Closing Payables | F177: $ | J177: =J101 -> 131.1780822 | K177: =K101 -> 302.5684932 | L177: =L101 -> 74.79452055 | M177: =M101 -> 187.5409836 | N177: =N101 -> 410.9589041
E178: Current Liabilities | F178: $ | J178: =SUM(J176:J177) -> 342.5753425 | K178: =SUM(K176:K177) -> 1195.195205 | L178: 74.79452055 | M178: 187.5409836 | N178: 410.9589041
E180: Net Assets | F180: $ | J180: =J174-J178 -> 678.06 | K180: =K174-K178 -> 1876.59929 | L180: 4313.249591 | M180: 7792.768984 | N180: 11757.07779
E183: Total Equity | F183: $ | J183: =SUM($J166:J166) -> 678.06 | K183: =SUM($J166:K166) -> 1876.59929 | L183: =SUM($J166:L166) -> 4313.249591 | M183: =SUM($J166:M166) -> 7792.768984 | N183: =SUM($J166:N166) -> 11757.07779
D186: Checks
E187: Prima Facie Error | F187: [1,0] | I187: =MIN(SUM(J187:N187),1) -> 0 | J187: =IF(ISERROR(J180-J183),1,) -> 0 | K187: =IF(ISERROR(K180-K183),1,) -> 0 | L187: 0 | M187: 0 | N187: 0
E188: Balance Check | F188: [1,0] | I188: =MIN(SUM(J188:N188),1) -> 0 | J188: =IF(J187<>0,,(ROUND(J180-J183,Rounding_Accuracy)<>0)*1) -> 0 | K188: =IF(K187<>0,,(ROUND(K180-K183,Rounding_Accuracy)<>0)*1) -> 0 | L188: =IF(L187<>0,,(ROUND(L180-L183,Rounding_Accuracy)<>0)*1) -> 0 | M188: =IF(M187<>0,,(ROUND(M180-M183,Rounding_Accuracy)<>0)*1) -> 0 | N188: =IF(N187<>0,,(ROUND(N180-N183,Rounding_Accuracy)<>0)*1) -> 0
E189: Insolvency Check | F189: [1,0] | I189: 0 | J189: =IF(AND(J187=0,J188=0),(J180<0)*1,) -> 0 | K189: =IF(AND(K187=0,K188=0),(K180<0)*1,) -> 0 | L189: 0 | M189: 0 | N189: 0
E190: Overall | F190: [1,0] | I190: =MIN(SUM(I187:I189),1) -> 0
C193: Cash Flow Statement
E195: =E70 -> Cash Receipts | F195: $ | J195: =-J70 -> 1253.424658 | K195: =-K70 -> 2828.630137 | L195: 4535.950685 | M195: 6434.633209 | N195: 8578.271476
E196: =E100 -> Cash Payments | F196: $ | J196: =J100 -> -1464.821918 | K196: =K100 -> -3509.859589 | L196: -1137.773973 | M196: -2175.253537 | N196: -4776.582079
E197: Cash Movement | F197: $ | J197: =SUM(J195:J196) -> -211.3972603 | K197: =SUM(K195:K196) -> -681.2294521 | L197: 3398.176712 | M197: 4259.379672 | N197: 3801.689396

Sheet Error Checks
A1: =IF(ISERROR(RIGHT(CELL("filename",A1),LEN(CELL("filename",A1))-FIND("]",CELL("filename",A1)))), "", RIGHT(CELL("filename",A1),LEN(CELL("filename",A1))-FIND("]",CELL("filename",A1)))) -> Error Checks
A2: =Model_Name -> Example Generic Inventory Model.xlsm
A3: Navigator
B4: Error Checks: | F4: =Overall_Error_Check -> 0
B6: =MAX($B$5:$B5)+1 -> 1 | C6: Error Checks
C8: Summary of Errors
D10: Assumptions
E12: Purchases OK | I12: =HL_Purchases -> 0
E13: Balance Sheet OK | I13: =HL_Balance -> 0
E17: =C8 -> Summary of Errors | I17: =MIN(1,SUM(I11:I15)) -> 0

Sheet Change Log
A1: =IF(ISERROR(RIGHT(CELL("filename",A1),LEN(CELL("filename",A1))-FIND("]",CELL("filename",A1)))), "", RIGHT(CELL("filename",A1),LEN(CELL("filename",A1))-FIND("]",CELL("filename",A1)))) -> Change Log
A2: =Model_Name -> Example Generic Inventory Model.xlsm
A3: Navigator
B4: Error Checks: | F4: =Overall_Error_Check -> 0
B6: =MAX($B$5:$B5)+1 -> 1 | C6: =A1 -> Change Log
C8: Summary
F10: Date | G10: Model Version | H10: Details of change | I10: Worksheet Reference | J10: Row, column, cell reference | K10: Author
